bitfinex/quotes_ETHUSD_20240821
["timestamp","ask_amount","ask_price","bid_price","bid_amount"]
[1724250457590,2.7998,2603.3,2602.0,0.3844]
[1724250457833,2.7998,2603.3,2602.1,0.48253968]
[1724250459327,2.7998,2603.3,2602.2,0.55]
[1724250459842,2.7998,2603.3,2602.0,0.55]
[1724250460966,2.7998,2603.3,2602.0,3.55]
[1724250461473,2.7998,2603.3,2602.0,7.39317]
[1724250461683,2.7998,2603.3,2602.2,0.3844]
[1724250461883,3.1013,2603.4,2602.4,0.3844]
[1724250462045,6.94243,2603.4,2602.5,0.55]
[1724250462245,3.1013,2603.4,2602.4,0.3844]
[1724250462545,3.1013,2603.4,2602.1,3.0]
[1724250462546,3.3212,2602.7,2601.6,0.7]
[1724250462747,3.3212,2602.7,2601.7,3.84362]
[1724250463074,3.3212,2602.7,2601.8,0.454362]
[1724250463229,3.3212,2602.7,2601.0,0.7]
[1724250463430,3.3212,2602.7,2600.4,3.84543]
[1724250463431,3.84167,2603.1,2601.1,0.3844]
[1724250463662,3.0602,2602.0,2601.1,0.3844]
[1724250464244,3.84384,2601.6,2600.4,0.46670301]
[1724250464485,3.84384,2601.6,2600.3,0.3844]
[1724250464486,6.90441,2601.4,2600.3,0.3844]
[1724250464632,3.0602,2601.4,2600.3,0.3844]
[1724250464832,3.0602,2601.4,2600.5,3.84527]
[1724250465483,3.0602,2601.4,2600.6,3.84524]
[1724250465695,3.0602,2601.4,2600.9,3.8448]
[1724250465981,3.0602,2601.4,2600.6,4.614319]
[1724250466129,3.2665,2601.8,2600.9,3.8448]
[1724250466336,7.1101,2601.8,2600.7,3.84503]
[1724250466649,7.1101,2601.8,2600.6,4.614319]
[1724250466650,4.395346,2601.7,2600.6,4.614319]
[1724250466966,4.395346,2601.7,2600.7,3.8451]
[1724250467131,8.239086,2601.7,2600.7,3.8451]
[1724250467332,3.204,2602.6,2600.8,3.92181336]
[1724250467578,3.204,2602.6,2600.7,3.7764]
[1724250467579,3.8428,2602.3,2601.3,3.84417]
[1724250467883,3.204,2602.6,2600.9,7.22912]
[1724250468091,3.84145,2603.2,2600.9,0.3844]
[1724250468092,3.84391,2601.6,2600.9,0.3844]
[1724250468378,3.2054,2602.0,2600.6,0.769079]
[1724250468379,7.04861,2602.0,2600.7,3.84508]
[1724250468579,3.84358,2601.8,2600.7,3.84501]
[1724250468795,0.684358,2601.7,2600.7,3.84501]
[1724250468936,3.1976,2601.6,2600.4,3.84549]
[1724250469136,3.84418,2601.4,2600.3,0.3844]
[1724250469481,3.84418,2601.4,2600.4,3.84545]
[1724250469482,3.1437,2601.3,2600.4,3.84545]
[1724250469847,3.1437,2601.3,2600.2,4.23015]
[1724250470045,3.45807,2601.3,2600.5,3.84532]
[1724250470246,3.45807,2601.3,2600.4,3.84552]
[1724250470573,3.8444,2601.2,2600.2,6.84574]
[1724250470734,3.1437,2601.3,2600.3,0.3844]
[1724250470938,3.3457,2601.7,2600.7,0.7]
[1724250471136,3.3457,2601.7,2601.6,3.84378]
[1724250471335,3.3457,2601.7,2601.0,3.84467]
[1724250471336,3.2189,2602.6,2601.7,3.84359]
[1724250471581,3.2189,2602.6,2601.0,0.7]
[1724250471582,3.2189,2602.6,2602.0,3.84317]
[1724250471943,3.2189,2602.6,2602.0,3.84318]
[1724250472187,3.2189,2602.6,2601.9,3.84333]
[1724250472188,0.32189,2602.5,2601.9,3.84333]
[1724250472493,0.32189,2602.5,2601.8,3.8434]
[1724250473188,0.32189,2602.5,2602.0,3.84314]
[1724250473486,0.32189,2602.5,2602.0,3.84319]
[1724250474087,3.2189,2602.6,2602.5,3.84245]
[1724250474389,3.84027,2604.0,2602.4,3.84258]
[1724250474390,3.3438,2603.6,2602.8,3.84192]
[1724250474588,3.3438,2603.6,2603.0,3.84162]
[1724250474746,3.3438,2603.6,2603.1,3.8415]
[1724250474942,3.3438,2603.6,2603.3,3.84126]
[1724250475172,3.0988,2604.1,2603.3,3.84126]
[1724250475381,3.0988,2604.1,2603.5,3.84088]
[1724250475561,3.0988,2604.1,2603.1,3.84146]
[1724250475766,0.693886,2604.0,2603.2,3.84131]
[1724250476147,3.3005,2603.9,2603.0,3.84168]
[1724250476348,3.3005,2603.9,2603.3,3.84115]
[1724250476573,3.3005,2603.9,2603.5,3.84097]
[1724250477419,3.3005,2603.9,2603.8,3.84054]
[1724250477603,3.83913,2604.8,2603.8,3.84054]
[1724250477604,2.2878,2604.7,2603.8,3.84054]
[1724250477819,2.671713,2604.7,2604.0,3.84024]
[1724250477986,2.671713,2604.7,2604.2,3.8399]
[1724250478511,2.671713,2604.7,2604.0,3.84024]
[1724250478512,2.671713,2604.7,2604.0,3.84013]
[1724250478827,0.2671713,2604.6,2604.1,3.84009]
[1724250479027,0.2671713,2604.6,2604.0,3.84013]
[1724250479316,0.2671713,2604.6,2603.5,0.3844]
[1724250479520,0.2671713,2604.6,2603.1,3.7]
[1724250479521,3.83966,2604.4,2603.4,7.68215]
[1724250479823,6.27384,2604.5,2603.6,3.84081]
[1724250480124,3.83989,2604.3,2603.4,3.84111]
[1724250480288,3.0,2604.4,2603.5,3.84089]
[1724250480473,0.927375,2604.3,2603.3,3.84126]
[1724250480673,6.20903,2604.2,2603.2,3.84137]
[1724250480874,10.04909,2604.2,2603.2,3.84137]
[1724250481114,10.04909,2604.2,2603.3,3.84123]
[1724250481115,2.369,2604.2,2603.3,3.84123]
[1724250481416,2.369,2604.2,2602.8,3.3844]
[1724250481723,10.04903,2604.2,2603.3,3.84118]
[1724250481875,0.2369,2604.1,2603.4,3.84112]
[1724250482077,0.2369,2604.1,2603.3,3.84118]
[1724250482307,0.2369,2604.1,2603.3,3.84117]
[1724250482795,0.2369,2604.1,2603.5,3.84096]
[1724250483180,0.2369,2604.1,2603.5,7.68185]
[1724250483620,0.2369,2604.1,2603.6,3.84082]
[1724250483879,0.2369,2604.1,2603.5,3.84089]
[1724250483880,2.369,2604.2,2604.1,3.84009]
[1724250484295,2.369,2604.2,2603.9,7.68055]
[1724250484511,2.369,2604.2,2603.5,3.8409]
[1724250484937,2.369,2604.2,2603.7,3.84067]
[1724250485235,2.369,2604.2,2603.9,3.84025]
[1724250485433,4.386,2605.4,2604.3,3.83968]
[1724250485434,2.3004,2604.6,2604.3,3.83968]
[1724250486033,2.3004,2604.6,2604.5,3.8395]
[1724250486400,3.8366,2606.5,2604.0,3.84021]
[1724250486401,2.3677,2605.2,2604.1,0.07678676]
[1724250486604,2.3677,2605.2,2605.0,3.83865]
[1724250486904,2.3677,2605.2,2605.1,3.83862]
[1724250487091,2.3902,2606.1,2605.3,3.83829]
[1724250487496,2.3902,2606.1,2605.2,3.83845]
[1724250487696,3.83745,2605.9,2604.9,3.83878]
[1724250487935,2.773945,2605.8,2605.1,3.8386]
[1724250488138,2.773945,2605.8,2604.9,3.83878]
[1724250488435,2.773945,2605.8,2605.1,7.67704]
[1724250488587,2.773945,2605.8,2604.9,3.83883]
[1724250488789,6.611545,2605.8,2604.9,3.83883]
[1724250489137,0.6611545,2605.7,2604.9,3.83883]
[1724250489362,6.3181,2605.6,2604.7,3.83913]
[1724250489637,6.3181,2605.6,2604.7,7.67824]
[1724250489638,2.5104,2605.5,2604.7,7.67824]
[1724250489788,2.5104,2605.5,2604.8,3.83904]
[1724250489983,0.25104,2605.4,2604.8,3.83904]
[1724250490385,0.25104,2605.4,2605.1,3.83854]
[1724250490620,2.5104,2605.5,2605.2,3.83834]
[1724250490837,2.5104,2605.5,2605.1,3.83852]
[1724250491007,2.5104,2605.5,2604.9,3.83881]
[1724250491610,2.5104,2605.5,2604.9,7.67763]
[1724250491793,3.83737,2606.0,2604.3,4.0844]
[1724250491794,2.4239,2606.1,2605.1,0.7]
[1724250492005,4.386,2607.6,2605.1,0.7]
[1724250492006,2.4239,2607.0,2606.2,3.83686]
[1724250492207,2.4239,2607.0,2605.2,1.04898156]
[1724250492208,6.25975,2607.0,2606.0,7.67442]
[1724250492440,2.4259,2606.7,2605.7,0.3844]
[1724250492744,2.4259,2606.2,2605.4,3.83808]
[1724250492887,3.83716,2606.1,2605.2,3.83837]
[1724250493088,2.4853,2606.0,2605.0,3.83864]
[1724250493340,2.4853,2606.0,2605.3,3.83829]
[1724250493507,2.4853,2606.0,2605.4,3.83815]
[1724250493706,0.24853,2605.9,2605.4,3.83815]
[1724250494235,0.24853,2605.9,2605.2,3.83836]
[1724250494436,0.24853,2605.9,2605.0,3.83868]
[1724250494947,0.24853,2605.9,2604.4,3.83952]
[1724250494948,2.2723,2605.8,2604.4,3.83952]
[1724250495108,3.83879,2605.0,2604.2,3.83983]
[1724250495306,2.2723,2605.1,2604.2,3.83983]
[1724250495307,2.2723,2605.1,2604.3,3.83968]
[1724250495527,2.2723,2605.1,2604.0,0.89]
[1724250495528,2.2723,2605.1,2604.5,3.8395]
[1724250495744,2.2723,2605.1,2604.5,3.83938]
[1724250495946,2.2723,2605.1,2604.9,3.83891]
[1724250496147,2.2723,2605.1,2604.9,7.67774]
[1724250496464,2.2723,2605.1,2604.9,3.83883]
[1724250496664,2.2723,2605.1,2604.8,3.83906]
[1724250496863,2.2723,2605.1,2604.9,3.83889]
[1724250497160,2.2723,2605.1,2604.7,3.8391]
[1724250497359,2.2723,2605.1,2604.8,3.83895]
[1724250497658,2.2723,2605.1,2604.7,3.8391]
[1724250497882,2.2723,2605.1,2604.3,3.83976]
[1724250497883,6.33823,2605.1,2604.3,3.83974]
[1724250498020,6.33823,2605.1,2604.0,0.89]
[1724250498021,2.439,2605.0,2604.1,3.83997]
[1724250498213,2.439,2605.0,2604.2,3.83984]
[1724250498412,2.439,2605.0,2604.4,3.83961]
[1724250498726,0.266623,2604.9,2604.4,3.83961]
[1724250498945,2.439,2605.0,2604.1,0.46119002]
[1724250499154,2.439,2605.0,2604.4,3.83962]
[1724250499336,2.439,2605.0,2604.9,3.83891]
[1724250499510,0.552083,2605.7,2605.1,3.8386]
[1724250499511,2.4539,2605.5,2605.1,3.8386]
[1724250499715,2.4539,2605.5,2605.1,3.83851]
[1724250500159,2.69929,2605.5,2604.1,0.55034405]
[1724250500312,2.2881,2605.3,2604.6,3.83933]
[1724250500644,2.2881,2605.3,2604.5,3.83942]
[1724250500967,2.2881,2604.8,2604.0,0.89]
[1724250501148,3.0,2605.4,2604.0,0.89]
[1724250501149,2.4818,2604.6,2604.0,0.89]
[1724250502220,2.4818,2604.6,2604.1,3.84007]
[1724250502414,2.4818,2604.6,2604.0,4.73023]
[1724250502415,2.4818,2604.6,2604.4,3.83963]
[1724250502616,2.4818,2604.6,2604.0,0.89]
[1724250502851,2.48083969,2604.6,2604.5,3.8395]
[1724250503085,2.48083969,2604.6,2604.3,7.67937]
[1724250503287,3.0,2605.2,2604.8,3.83898]
[1724250503487,0.24539,2605.5,2605.0,3.83864]
[1724250503655,3.8373,2606.0,2605.2,3.83845]
[1724250504402,3.8373,2606.0,2604.7,3.83918]
[1724250504403,3.83658,2606.5,2605.5,3.83802]
[1724250504700,3.83688,2606.3,2605.5,3.8379]
[1724250504904,7.67387,2606.3,2605.3,7.67644]
[1724250505069,3.83715,2606.1,2605.3,3.83819]
[1724250505403,3.83715,2606.1,2605.1,3.83853]
[1724250505404,3.8373,2606.0,2605.1,3.83853]
[1724250505572,3.8373,2606.0,2605.2,3.83845]
[1724250505758,0.383688,2606.2,2605.3,3.8382]
[1724250505759,3.383688,2606.2,2605.3,3.8382]
[1724250505960,2.3631,2606.1,2605.3,3.8382]
[1724250506195,5.3631,2606.1,2605.3,7.67643]
[1724250506375,5.3631,2606.1,2605.4,3.83814]
[1724250506723,0.5746788,2606.0,2605.4,3.83809]
[1724250507004,0.5746788,2606.0,2604.9,3.83877]
[1724250507005,3.0,2606.0,2605.5,3.83801]
[1724250507207,5.3631,2606.1,2605.5,3.83801]
[1724250507208,2.3631,2606.1,2605.5,3.83793]
[1724250507699,2.3631,2606.1,2605.3,7.67648]
[1724250507912,2.3631,2606.1,2605.0,0.3844]
[1724250507913,2.3631,2606.1,2605.5,3.83803]
[1724250508051,2.59941,2606.1,2605.3,7.67643]
[1724250508256,2.59941,2606.1,2605.3,3.83819]
[1724250508806,3.0,2606.0,2605.3,3.83819]
[1724250509460,3.0,2606.0,2605.4,3.83816]
[1724250509695,2.3631,2606.1,2604.9,0.3844]
[1724250509905,2.3631,2606.1,2605.5,3.83794]
[1724250510218,2.3631,2606.1,2605.7,3.83766]
[1724250510535,2.3631,2606.1,2605.7,3.83773]
[1724250510702,2.3631,2606.1,2605.8,3.83747]
[1724250511058,2.3631,2606.1,2605.9,3.83734]
[1724250511606,2.3756,2606.6,2605.9,3.83734]
[1724250511761,2.3756,2606.6,2605.7,3.83768]
[1724250511964,2.3756,2606.6,2605.5,0.383794]
[1724250511965,2.3756,2606.6,2605.8,3.8375]
[1724250512272,2.3756,2606.6,2605.9,3.83737]
[1724250512964,3.83666,2606.5,2605.6,3.83778]
[1724250513304,5.3756,2606.6,2605.6,3.83778]
[1724250513305,2.3756,2606.6,2605.8,3.83756]
[1724250513513,0.23756,2606.5,2605.8,3.83756]
[1724250514017,2.3756,2606.6,2605.9,3.83744]
[1724250514215,2.3756,2606.6,2605.7,3.83766]
[1724250514437,2.3756,2606.6,2606.1,3.83705]
[1724250514644,2.3756,2606.6,2606.0,3.83715]
[1724250514848,6.21201,2606.6,2605.6,3.83778]
[1724250515028,2.3756,2606.6,2605.7,0.07674237]
[1724250515200,2.3756,2606.6,2606.2,3.83698]
[1724250515650,2.3756,2606.6,2606.1,3.83705]
[1724250515944,2.3756,2606.6,2606.2,3.83699]
[1724250516157,2.3756,2606.6,2606.0,3.83716]
[1724250516440,2.3756,2606.6,2606.2,3.837]
[1724250516646,2.3756,2606.6,2606.1,3.83713]
[1724250516851,2.3756,2606.6,2605.9,3.83734]
[1724250516996,2.3756,2606.6,2606.0,3.83729]
[1724250517204,2.3756,2606.6,2605.7,0.492219]
[1724250517205,2.996773,2606.6,2605.7,3.83763]
[1724250517449,3.83658,2606.5,2605.7,3.83763]
[1724250517602,3.0,2606.4,2605.7,3.83763]
[1724250517805,3.0,2606.4,2605.8,3.83756]
[1724250518089,3.0,2606.5,2605.8,3.83745]
[1724250518346,3.83695,2606.3,2605.4,3.83809]
[1724250518558,2.3631,2606.4,2605.8,3.83749]
[1724250518863,2.3631,2606.4,2606.3,3.83685]
[1724250518998,1.99149073,2608.0,2605.6,0.3844]
[1724250518999,2.3631,2606.9,2606.4,3.83667]
[1724250519328,2.3631,2606.9,2606.4,3.83663]
[1724250519529,2.3631,2606.9,2606.4,3.8366]
[1724250520649,2.3631,2606.9,2606.4,7.67323]
[1724250520947,2.3631,2606.9,2606.4,3.8366]
[1724250521261,2.3631,2606.9,2606.4,7.67323]
[1724250521418,2.3631,2606.9,2606.6,3.8364]
[1724250521745,2.3631,2606.9,2606.4,3.8366]
[1724250521746,2.3631,2606.9,2606.4,7.67319]
[1724250521956,2.3631,2606.9,2606.5,3.83654]
[1724250522462,2.59941,2606.9,2605.8,3.83753]
[1724250522662,2.59941,2606.9,2606.2,3.83692]
[1724250522864,2.3631,2606.9,2606.2,3.83692]
[1724250523012,2.3631,2606.9,2606.2,3.83691]
[1724250523216,2.3631,2606.9,2606.5,3.8365]
[1724250523670,2.3631,2606.9,2605.7,4.53769]
[1724250523671,3.83628,2606.7,2605.8,3.83745]
[1724250523872,2.3891,2606.4,2605.7,3.8376]
[1724250524020,2.3891,2606.4,2606.1,3.83705]
[1724250524215,2.3891,2606.4,2605.9,3.8373]
[1724250524535,2.3891,2606.4,2605.6,3.83774]
[1724250524721,2.3891,2606.4,2605.6,4.22214]
[1724250524931,2.3891,2606.4,2605.7,4.042214]
[1724250525123,2.3891,2606.4,2605.9,3.83743]
[1724250525366,2.3891,2606.4,2605.7,4.042214]
[1724250525367,2.3891,2606.4,2606.0,0.55]
[1724250525604,2.3891,2606.4,2605.7,7.879914]
[1724250525605,2.4301,2606.9,2606.6,3.83632]
[1724250525715,2.4301,2606.9,2606.5,3.83648]
[1724250527220,2.67311,2606.9,2606.3,3.83677]
[1724250527456,6.50916,2606.9,2606.1,3.8371]
[1724250527663,3.83653,2606.6,2605.7,3.83766]
[1724250527876,3.145243,2606.5,2605.7,3.83764]
[1724250528519,3.145243,2606.5,2606.0,3.83722]
[1724250528721,2.5035,2606.5,2605.8,3.83749]
[1724250529039,2.5035,2606.5,2605.8,7.675]
[1724250529726,2.5035,2606.5,2605.9,3.83743]
[1724250530182,2.5035,2606.5,2606.0,3.83727]
[1724250530323,2.4567,2606.9,2606.1,0.55]
[1724250530529,2.4567,2606.9,2606.6,3.83636]
[1724250531067,2.4567,2606.9,2606.4,7.67316]
[1724250531271,2.4567,2606.9,2606.3,3.83681]
[1724250531272,2.70237,2606.9,2606.3,3.83681]
[1724250531625,2.70237,2606.9,2606.1,3.83711]
[1724250532169,2.70237,2606.9,2606.0,3.8372]
[1724250532370,2.70237,2606.9,2605.4,4.22253]
[1724250532371,3.83659,2606.5,2605.6,3.8378]
[1724250532539,2.5715,2606.3,2605.6,3.8378]
[1724250533219,2.5715,2606.3,2605.6,7.67559]
[1724250533419,2.5715,2606.3,2605.4,3.83809]
[1724250533724,3.0,2606.2,2605.4,7.67619]
[1724250534068,3.0,2606.2,2605.3,0.89]
[1724250534276,6.79278,2606.1,2605.3,0.89]
[1724250534487,6.83741,2606.0,2605.3,0.89]
[1724250534622,2.5176,2605.6,2605.3,0.89]
[1724250535330,2.5176,2605.6,2605.4,3.83803]
[1724250535529,2.5176,2605.6,2605.5,3.83803]
[1724250535937,2.5176,2605.6,2605.4,3.83803]
[1724250537019,2.4188,2606.2,2605.4,0.54955878]
[1724250537223,2.4188,2606.2,2605.7,3.83765]
[1724250537669,2.4188,2606.2,2605.6,3.83774]
[1724250537877,2.4188,2606.2,2605.6,7.67552]
[1724250538038,2.4188,2606.2,2605.7,3.83772]
[1724250538221,2.4188,2606.2,2605.8,3.83759]
[1724250538425,2.4188,2606.2,2605.8,3.8375]
[1724250538650,2.4188,2606.2,2605.7,3.8377]
[1724250539093,2.4188,2606.2,2605.6,3.83776]
[1724250539370,2.4188,2606.2,2605.4,3.83806]
[1724250539371,6.49776,2606.2,2605.4,3.83806]
[1724250539583,2.66068,2606.2,2605.4,3.83806]
[1724250539787,2.66068,2606.2,2605.6,3.83787]
[1724250540082,2.66068,2606.2,2605.3,0.89]
[1724250540083,0.266068,2606.1,2605.3,0.89]
[1724250540288,0.266068,2606.1,2605.4,3.83816]
[1724250540488,4.103228,2606.1,2605.3,0.89]
[1724250540636,4.103228,2606.1,2605.3,4.7283]
[1724250540840,0.6522028,2606.0,2605.6,3.83788]
[1724250541051,2.4188,2606.2,2605.6,7.67567]
[1724250541338,2.4188,2606.2,2605.3,0.89]
[1724250541339,3.83725,2606.1,2605.3,0.89]
[1724250541541,5.3955,2606.0,2605.3,0.89]
[1724250541786,9.23286,2606.0,2605.3,0.89]
[1724250541970,0.923286,2605.9,2605.3,0.89]
[1724250542698,0.923286,2605.9,2604.4,3.83952]
[1724250542699,2.3581,2605.3,2604.4,3.83952]
[1724250542844,2.3581,2605.3,2604.5,3.8395]
[1724250543040,2.3581,2605.3,2604.0,3.8402]
[1724250543248,2.3581,2605.3,2604.9,3.83886]
[1724250543471,2.3581,2605.3,2605.0,3.83869]
[1724250543673,2.3581,2605.3,2605.1,3.83862]
[1724250543872,2.3581,2605.3,2604.9,7.67763]
[1724250544089,2.3581,2605.3,2604.9,3.83881]
[1724250544276,2.3581,2605.3,2604.7,3.83914]
[1724250544486,2.59391,2605.3,2604.7,3.83913]
[1724250544693,2.59391,2605.3,2604.7,3.83912]
[1724250544858,2.59391,2605.3,2604.5,7.67881]
[1724250545061,6.43224,2605.3,2604.3,3.83971]
[1724250545264,0.643224,2605.2,2604.3,3.83971]
[1724250545619,2.4842,2605.1,2604.5,3.8395]
[1724250545904,2.4842,2605.1,2604.3,7.67938]
[1724250546072,2.4842,2605.1,2604.3,3.83967]
[1724250546400,2.6915424,2605.0,2604.3,3.83967]
[1724250546600,2.6915424,2605.0,2604.5,3.83937]
[1724250546905,2.6915424,2605.0,2604.1,3.84004]
[1724250547064,2.6915424,2605.0,2604.2,3.8399]
[1724250547264,2.5384,2604.8,2604.2,3.8399]
[1724250547494,2.5384,2604.8,2604.3,3.83975]
[1724250548078,2.5384,2604.8,2604.1,3.84004]
[1724250548279,0.26915424,2604.9,2603.6,3.0]
[1724250548280,2.3383,2604.7,2603.6,3.0]
[1724250548470,2.3383,2604.7,2603.7,0.459]
[1724250548664,3.93885475,2605.2,2604.8,3.83903]
[1724250548873,2.3383,2605.2,2605.1,3.83862]
[1724250549295,2.3383,2605.2,2605.1,7.67724]
[1724250549677,2.3657,2605.8,2605.3,3.83824]
[1724250550009,2.3657,2605.8,2605.6,3.83778]
[1724250550211,2.3657,2605.8,2605.7,3.83774]
[1724250551314,2.3657,2605.8,2605.6,3.8378]
[1724250551611,2.3657,2605.8,2604.9,6.83886]
[1724250551612,2.5532,2606.4,2605.7,3.83774]
[1724250551989,2.5532,2606.4,2605.7,3.83765]
[1724250552343,2.4524,2606.3,2605.3,3.83822]
[1724250552638,0.24524,2606.2,2605.5,3.83801]
[1724250553108,2.3541,2606.1,2605.7,3.8377]
[1724250553946,2.3541,2606.1,2605.7,3.83764]
[1724250554249,2.3541,2606.1,2605.5,7.67588]
[1724250554397,2.58951,2606.1,2605.7,3.83773]
[1724250555003,2.3541,2606.1,2605.7,3.83773]
[1724250555230,2.3541,2606.1,2605.5,3.8379]
[1724250555836,2.3541,2606.1,2604.9,6.83889]
[1724250556039,2.3541,2606.1,2605.4,3.83818]
[1724250556911,2.3541,2606.1,2605.0,4.72867]
[1724250557112,2.3541,2606.1,2605.0,0.89]
[1724250557113,2.4599,2605.9,2605.0,0.89]
[1724250557297,2.4599,2605.7,2605.0,0.89]
[1724250557495,5.4599,2605.7,2605.0,0.89]
[1724250557697,2.4599,2605.6,2605.0,0.89]
[1724250558108,5.4599,2605.6,2605.0,0.89]
[1724250558342,0.929777,2605.5,2605.0,0.89]
[1724250558950,5.4599,2605.6,2605.0,0.89]
[1724250558951,5.4599,2605.6,2605.2,3.83839]
[1724250559134,5.4599,2605.6,2605.0,4.72874]
[1724250559135,2.4599,2605.6,2605.0,4.72874]
[1724250560014,2.4599,2605.6,2605.0,0.89]
[1724250560015,3.83813,2605.5,2605.0,0.89]
[1724250560217,2.5139,2605.3,2605.0,0.89]
[1724250561105,2.3639,2605.3,2605.0,0.89]
[1724250561503,2.3639,2605.3,2605.0,4.72876]
[1724250561819,2.3639,2605.3,2605.0,4.72875]
[1724250562016,2.3639,2605.3,2605.1,3.83852]
[1724250562332,2.3639,2605.3,2605.0,8.56743]
[1724250562501,2.3639,2605.3,2605.0,4.72868]
[1724250562832,2.3639,2605.3,2605.0,0.89]
[1724250563044,2.60029,2605.3,2605.0,0.89]
[1724250564107,2.3639,2605.3,2605.0,0.89]
[1724250564436,2.5445,2605.6,2605.2,3.83847]
[1724250564738,2.5445,2605.6,2605.5,0.89]
[1724250565049,2.4722,2606.1,2605.5,4.72803]
[1724250565216,2.4722,2606.1,2605.7,3.83759]
[1724250565416,2.4722,2606.1,2605.5,0.89]
[1724250565417,2.4722,2606.1,2605.9,3.83734]
[1724250565619,2.4722,2606.7,2606.0,3.83729]
[1724250566024,2.4722,2606.7,2606.1,3.83705]
[1724250566602,2.4722,2606.7,2606.0,3.8372]
[1724250567123,2.4722,2606.7,2606.0,7.67442]
[1724250567322,2.4722,2606.7,2606.2,3.83699]
[1724250568274,2.4722,2606.7,2606.0,4.604612]
[1724250568419,2.4722,2606.7,2606.0,8.441832]
[1724250568753,2.4722,2606.7,2606.0,3.83717]
[1724250568956,6.30854,2606.7,2605.8,3.8375]
[1724250569107,2.3733,2606.6,2605.8,3.83749]
[1724250569311,3.83689,2606.3,2605.6,0.89]
[1724250569608,2.392,2606.2,2605.6,0.89]
[1724250569809,5.392,2606.2,2605.6,0.89]
[1724250570128,2.392,2606.2,2605.6,4.72785]
[1724250570524,2.392,2606.2,2605.6,4.72776]
[1724250570747,2.3582,2606.1,2605.6,0.89]
[1724250570990,3.83752,2605.9,2605.6,0.89]
[1724250571191,7.79606475,2606.0,2605.6,0.89]
[1724250571192,2.3582,2606.0,2605.6,0.89]
[1724250571391,3.0,2605.9,2605.6,0.89]
[1724250571591,0.53582,2605.9,2605.6,0.89]
[1724250571764,3.53582,2605.9,2605.6,0.89]
[1724250572512,3.43582,2605.9,2605.6,0.89]
[1724250572651,7.27336,2605.9,2605.6,0.89]
[1724250572857,2.3988,2605.8,2605.6,0.89]
[1724250573204,10.632342,2605.7,2605.6,0.89]
[1724250573365,12.23289675,2605.7,2605.6,0.89]
[1724250573552,15.23737984,2605.7,2605.6,0.89]
[1724250573753,13.632342,2605.7,2605.6,0.89]
[1724250574111,2.3186,2605.5,2604.4,0.3844]
[1724250574401,2.3186,2605.5,2604.6,3.83928]
[1724250574622,2.3186,2605.5,2604.8,3.83902]
[1724250574826,2.3186,2605.5,2604.8,7.67796]
[1724250575010,2.3186,2605.5,2604.8,3.83897]
[1724250575189,2.3186,2605.5,2605.0,3.83873]
[1724250575392,2.3186,2605.5,2604.9,3.83884]
[1724250575574,2.3186,2605.5,2604.8,0.383897]
[1724250575575,2.3186,2605.5,2605.2,3.83846]
[1724250575774,2.3186,2605.5,2604.8,0.383897]
[1724250575775,2.3186,2605.5,2604.8,3.83896]
[1724250576003,2.3186,2605.5,2604.8,7.67795]
[1724250576729,2.3186,2605.5,2605.0,3.83875]
[1724250577221,2.3186,2605.5,2604.8,3.83892]
[1724250577828,2.3186,2605.5,2605.0,3.83876]
[1724250578592,2.3186,2605.5,2604.8,3.83892]
[1724250578593,3.3947512,2605.5,2604.8,3.83892]
[1724250578887,3.3947512,2605.5,2604.4,5.11402]
[1724250578888,5.44370197,2605.1,2604.4,0.89]
[1724250579113,2.5235,2604.8,2604.4,0.89]
[1724250579313,3.3202502,2604.8,2604.4,0.89]
[1724250579627,2.5235,2604.8,2604.4,0.89]
[1724250581195,6.36263,2604.8,2604.4,0.89]
[1724250581500,2.5235,2604.8,2604.4,0.89]
[1724250581980,1.60508197,2605.1,2604.6,3.83928]
[1724250582324,2.4347,2605.3,2604.8,3.83895]
[1724250582488,4.15648197,2605.2,2604.4,0.89]
[1724250582692,2.5514,2604.9,2604.4,0.89]
[1724250582909,7.39050363,2604.9,2604.4,0.89]
[1724250583219,11.22950363,2604.9,2604.4,0.89]
[1724250583418,3.55155363,2604.9,2604.4,0.89]
[1724250583594,3.0,2604.8,2604.4,0.89]
[1724250583930,2.5514,2604.9,2604.5,3.8395]
[1724250584232,2.5514,2604.9,2604.4,4.72955]
[1724250584233,2.5514,2604.9,2604.6,3.83927]
[1724250584532,2.4535,2605.3,2604.9,3.83883]
[1724250584681,4.05858197,2605.6,2605.2,3.83843]
[1724250584877,2.4535,2605.6,2605.2,3.83843]
[1724250585072,2.4535,2605.6,2605.1,0.89]
[1724250587034,2.4535,2605.6,2605.1,1.362875]
[1724250587331,4.12758197,2606.0,2605.4,3.83808]
[1724250587502,2.5225,2606.0,2605.4,7.67616]
[1724250587704,2.5225,2606.0,2605.6,3.83777]
[1724250588417,2.5225,2606.0,2605.1,0.89]
[1724250588626,2.5225,2606.0,2605.4,3.83816]
[1724250588789,2.348,2606.2,2605.1,0.89]
[1724250588990,7.79022197,2606.2,2605.4,3.83816]
[1724250589204,7.79022197,2606.2,2605.5,3.83802]
[1724250589205,3.95308197,2606.2,2605.5,3.83802]
[1724250589435,2.348,2606.2,2605.5,3.83802]
[1724250589640,2.348,2606.2,2605.3,3.83825]